Cogmind - Beta 16.1 @@@ ROGUE MODE // 2026.02.26 @ 17:59:49 Player: cabin Result: Destroyed by Y-45 Defender with Heavy Assault Rifle Performance ------------- Evolutions (1) 500 Regions Visited (4) 800 Robots Destroyed (9) 45 Value Destroyed (74) 74 Prototype IDs (0) 0 Alien Tech Used (0) 0 Bonus (0) 0 TOTAL SCORE: 1419 Bonus ------- None Cogmind --------- Core Integrity 0/400 Matter 133/300 Energy 100/100 System Corruption 2% Temperature Cool (9) Movement Core (50) Location -9/Storage Parts ------- > --- POWER (1) -------- (None) > --- PROPULSION (4) --- (None) > --- UTILITY (2) ------ (None) > --- WEAPON (2) ------- (None) > --- INVENTORY (5) ---- Weight Redist. System Structural Scanner ECM Suite Shield Generator Rocket Launcher Peak State ------------ > --- POWER ------------ Ion Engine > --- PROPULSION ------- Light Treads Light Treads > --- UTILITY ---------- Small Storage Unit Shield Generator > --- WEAPON ----------- Shotgun Shotgun > --- INVENTORY -------- Light Ion Engine Shield Generator Medium Laser Medium Laser Assault Rifle [Rating: 10] Favorites ----------- Power Ion Engine Engine Ion Engine Propulsion Light Treads Treads Light Treads Flight Unit Flight Unit Utility Small Storage Unit Device Shield Generator Storage Small Storage Unit Processor Signal Interpreter Weapon Shotgun Energy Gun Medium Laser Ballistic Gun Shotgun Launcher Grenade Launcher Special Melee Weapon Datajack Build | -11 -10 -10 -9 -9 ------- Run | Yrd Mat Min Mat Sto Slots Evolved 2 | . . . 2 . Power . | . . . . . Propulsion 2 | . . . 2 . Utility . | . . . . . Weapon . | . . . . . Parts Attached 23 | 6 3 3 7 4 Power 2 | 1 . . 1 . Engine 2 | 1 . . 1 . Core . | . . . . . Reactor . | . . . . . Propulsion 6 | 2 . . 4 . Treads 2 | 2 . . . . Leg . | . . . . . Wheel . | . . . . . Hover . | . . . . . Flight 4 | . . . 4 . Utility 9 | 1 1 1 2 4 Device 7 | . 1 . 2 4 Storage 1 | 1 . . . . Processor 1 | . . 1 . . Hackware . | . . . . . Protection . | . . . . . Artifact . | . . . . . Weapon 6 | 2 2 2 . . Energy Gun 1 | 1 . . . . Energy Cannon . | . . . . . Ballistic Gun 3 | 1 2 . . . Ballistic Cannon . | . . . . . Launcher 1 | . . 1 . . Special Weapon . | . . . . . Impact Weapon . | . . . . . Slashing Weapon . | . . . . . Piercing Weapon . | . . . . . Special Melee Weapon 1 | . . 1 . . Unidentified Prototypes . | . . . . . Parts Lost 9 | . . . 4 5 Power . | . . . . . Propulsion 4 | . . . 3 1 Utility 3 | . . . . 3 Weapon 2 | . . . 1 1 Highest Loss Streak 4 | . . . 4 2 To Critical Strikes . | . . . . . Average Backups 4 | 1 5 7 4 4 Power . | . 1 1 . . Propulsion . | . . . . . Utility 2 | . 1 2 2 3 Weapon 1 | . 3 3 . . Tool/Special . | . . . . . Unused Backups 5 | . . 2 . 3 Power . | . . . . . Propulsion 1 | . . 1 . . Utility 2 | . . . . 2 Weapon 2 | . . 1 . 1 Tool/Special . | . . . . . Average Slot Usage (%) 73 | . 98 100 83 21 Engine 9 | . 14 14 11 . Treads 14 | . 28 28 . . Flight 7 | . . . 33 2 Device 8 | . 12 . 8 11 Storage 7 | . 14 14 2 . Processor 5 | . . 13 11 3 Ballistic Gun 13 | . 26 15 8 4 Launcher 3 | . . 9 8 . Peak Build Rating 10 | 6 10 10 10 10 Average Rating 7 | 4 9 8 8 4 On Entrance 6 | . 6 10 8 6 Avg Prop Armor Cover (%) . | . . . . . Naked Turns 26 | . . . . 26 Heaviest Build 18 | 14 18 18 14 12 Greatest Support 40 | 40 40 40 22 10 Greatest Overweight (x) 3 | 1 . . . 3 Average Overweight (x) . | . . . . . Largest Inventory Capacity 8 | 8 8 8 8 5 Average Capacity 6 | 7 8 8 5 5 Most Carried 8 | 2 7 8 8 5 Average Carried 4 | 1 5 7 3 4 Final Capacity 8 | 8 8 8 5 5 Final Carried 8 | 2 7 8 3 5 Class Distribution -------------------- 86% | Mutant 13% | Scavenger-Sprinter Dominant Class ---------------- Mutant | -10/Materials Mutant | -10/Mines Mutant | -9/Materials Mutant | -9/Storage Resources | -11 -10 -10 -9 -9 ----------- Run | Yrd Mat Min Mat Sto Matter Collected 409 | 238 10 11 14 136 Remotely . | . . . . . Salvage Created 85 | . 10 25 50 . Parts 14 | . 2 10 2 . Haulers Intercepted . | . . . . . Recyclers Shooed . | . . . . . Parts Field Recycled . | . . . . . Retrieved Matter . | . . . . . Parts Self-Destructed . | . . . . . Prevented . | . . . . . Parts Restored . | . . . . . Kills | -11 -10 -10 -9 -9 ------- Run | Yrd Mat Min Mat Sto Combat Hostiles Destroyed 6 | . . 6 . . Guns 1 | . . 1 . . AOE 5 | . . 5 . . Classes Destroyed 4 | . 2 1 1 . Worker 1 | . 1 . . . Tunneler 1 | . 1 . . . Recycler 1 | . . . 1 . Swarmer 6 | . . 6 . . Best Kill Streak 3 | . 2 3 1 . Combat Bots Only 3 | . . 3 . . Max Kills in Single Turn 2 | . 1 2 1 . Gunslinging . | . . . . . Exploded 2 | . . 2 . . Melee . | . . . . . Uniques/NPCs Destroyed . | . . . . . Combat | -11 -10 -10 -9 -9 -------- Run | Yrd Mat Min Mat Sto Hostile Shots Fired 140 | . . 9 40 91 Missed 55 | . . 3 22 30 Hits 85 | . . 6 18 61 Projectile 85 | . . 6 18 61 Damage Taken 1208 | . . 156 277 775 Core 406 | . . . 80 326 Absorbed by Shields . | . . . . . Regen/Repaired (Parts) 38 | . . . . 38 Core Remaining (%) 100 | 100 . 100 . . Volleys Fired 24 | . 4 4 16 . Largest 2 | . 2 2 2 . Hottest 53 | . 46 53 50 . Shots Fired 36 | . 8 8 20 . Gun 28 | . 8 4 16 . Cannon . | . . . . . Launcher 8 | . . 4 4 . Special . | . . . . . Kinetic 28 | . 8 4 16 . Thermal . | . . . . . Explosive 8 | . . 4 4 . Electromagnetic . | . . . . . Robot Hit Streak 10 | . 2 2 10 . Robot Miss Streak 13 | . 4 13 2 . Penetration Max . | . . . . . Secondary Targets . | . . . . . Shots Hit Robots 21 | . 6 1 14 . Core Hits 11 | . 2 7 2 . Critical Kills . | . . . . . Critical Parts Destroyed . | . . . . . Critical Strikes . | . . . . . Melee Attacks . | . . . . . Impact . | . . . . . Slashing . | . . . . . Piercing . | . . . . . Sneak Attacks . | . . . . . Combat Hostiles . | . . . . . Follow-up Attacks . | . . . . . Damage Inflicted 585 | . 69 275 233 8 Guns 212 | . 68 19 125 . Cannons . | . . . . . Explosions 364 | . . 256 108 . Melee . | . . . . . Ramming 9 | . 1 . . 8 Kinetic 212 | . 68 19 125 . Thermal . | . . . . . Explosive 364 | . . 256 108 . Electromagnetic . | . . . . . Impact . | . . . . . Slashing . | . . . . . Piercing . | . . . . . Highest Corruption 2 | . . . . 2 Average Corruption 2 | . . . . 2 Corruption Purged . | . . . . . Corruption Blocked . | . . . . . Effects 3 | . . . . 3 Message Errors 2 | . . . . 2 Matter Fused 1 | . . . . 1 Overload Shots . | . . . . . Overflow Damage 9 | . . . 9 . Projectiles . | . . . . . Explosions 9 | . . . 9 . Melee . | . . . . . Knockbacks . | . . . . . Impact . | . . . . . Kinetic . | . . . . . Secondary . | . . . . . Self-Inflicted Damage 146 | . . 111 32 3 Shots 4 | . . 3 1 . Rammed 4 | . . . . 4 Targets Rammed 5 | . 1 . . 4 Kicked . | . . . . . Crushed 1 | . 1 . . . Highest Temperature 11 | . . . 11 . Average Temperature 4 | . . . 4 . Received Heat Transfer 384 | . . . 63 321 Siege Activations . | . . . . . Martial Activations . | . . . . . Shielding Activations . | . . . . . Robots Disrupted . | . . . . . Combat Hostiles . | . . . . . Robots Corrupted . | . . . . . Combat Hostiles . | . . . . . Parts Fried . | . . . . . Impact Corruptions . | . . . . . Robots Melted . | . . . . . Combat Hostiles . | . . . . . Parts Melted . | . . . . . Heat Transferred . | . . . . . Parts Sabotaged . | . . . . . Parts Stolen . | . . . . . Parts Stripped . | . . . . . Power Chain Reactions . | . . . . . Alert | -11 -10 -10 -9 -9 ------- Run | Yrd Mat Min Mat Sto Maximum Alert Level . | . . . . . Low Security (%) 100 | 100 100 100 100 100 Level 1 . | . . . . . Level 2 . | . . . . . Level 3 . | . . . . . Level 4 . | . . . . . Level 5 . | . . . . . High Security . | . . . . . Max Security . | . . . . . Peak Influence 138 | . 5 138 45 30 Initial 45 | . . . 45 . Average 15 | . . 59 20 4 Influence Increases 249 | . 10 168 26 45 Destroy 0b10 Robot/C 120 | . . 120 . . Destroy 0b10 Robot/NC 15 | . 10 . 5 . Destroy Leader 20 | . . 20 . . Successful Hack 5 | . . . 5 . Destroy Structure 44 | . . 28 16 . Lose Combat Pursuer 45 | . . . . 45 Influence Decreases 234 | . 10 50 144 30 Entered New Map 73 | . . . 73 . Time Decay 130 | . 10 50 50 20 Lost Part 31 | . . . 21 10 Squads Dispatched 1 | . 1 . . . Investigation 1 | . 1 . . . Extermination . | . . . . . Reinforcement . | . . . . . Assault . | . . . . . Garrison . | . . . . . Intercept . | . . . . . Searches Triggered . | . . . . . Construction Impeded . | . . . . . Haulers Reinforced . | . . . . . Active Scanning Responses . | . . . . . Cargo Convoy Interrupts . | . . . . . Stealth | -11 -10 -10 -9 -9 --------- Run | Yrd Mat Min Mat Sto Distress Signals 2 | . . . 1 1 Communications Jammed . | . . . . . Distress Signals . | . . . . . Times Spotted 24 | . 2 6 6 10 Peak Tracking Total 7 | . 2 3 5 7 Tactical Retreats 2 | . . . . 2 Traps | -11 -10 -10 -9 -9 ------- Run | Yrd Mat Min Mat Sto Traps Triggered 1 | . 1 . . . Indirectly . | . . . . . Trap Hack Attempts . | . . . . . Triggered . | . . . . . Disarmed . | . . . . . Reprogrammed . | . . . . . Reused . | . . . . . Traps Extracted . | . . . . . Installed . | . . . . . Triggered . | . . . . . Machines | -11 -10 -10 -9 -9 ---------- Run | Yrd Mat Min Mat Sto Machines Disabled . | . . . . . Max in Single Turn . | . . . . . Machines Repaired . | . . . . . Machines Dismantled . | . . . . . Machines Sabotaged . | . . . . . Overloaded Fab Kills . | . . . . . Hacking | -11 -10 -10 -9 -9 --------- Run | Yrd Mat Min Mat Sto Machines Accessed 6 | . 3 . 1 2 Terminals 4 | . 2 . 1 1 Fabricators . | . . . . . Repair Stations 1 | . . . . 1 Recycling Units 1 | . 1 . . . Scanalyzers . | . . . . . Garrison Access . | . . . . . Total Hacks 8 | . 4 . 1 3 Successful 7 | . 3 . 1 3 Failed 1 | . 1 . . . Catastrophic . | . . . . . Database Lockouts . | . . . . . Manual 2 | . . . . 2 Terminals 5 | . 3 . 1 1 Fabricators . | . . . . . Repair Stations 2 | . . . . 2 Recycling Units 1 | . 1 . . . Scanalyzers . | . . . . . Garrison Access . | . . . . . Terminal Hacks 4 | . 2 . 1 1 Record 1 | . 1 . . . Open Door 1 | . . . . 1 Zone Layout 2 | . 1 . 1 . Fabricator Hacks . | . . . . . Repair Station Hacks 2 | . . . . 2 Scan Component 1 | . . . . 1 Repair 1 | . . . . 1 Recycling Unit Hacks 1 | . 1 . . . Report Inventory 1 | . 1 . . . Scanalyzer . | . . . . . Garrison Access Hacks . | . . . . . Unauthorized Hacks . | . . . . . Terminals . | . . . . . Fabricators . | . . . . . Repair Stations . | . . . . . Recycling Units . | . . . . . Scanalyzers . | . . . . . Garrison Access . | . . . . . Data Cores Recovered . | . . . . . Used . | . . . . . Hacking Detections 5 | . 3 . . 2 Full Trace Events . | . . . . . Feedback Events . | . . . . . Feedback Blocked . | . . . . . Robot Schematics Acquired . | . . . . . Robots Built . | . . . . . Authchips . | . . . . . Time . | . . . . . Total Robot Build Rating . | . . . . . Part Schematics Acquired . | . . . . . Parts Built . | . . . . . Authchips . | . . . . . Time . | . . . . . Total Part Build Rating . | . . . . . Part Studies Acquired . | . . . . . Parts Repaired 1 | . . . . 1 Time 26 | . . . . 26 Parts Recycled . | . . . . . Recycled Matter . | . . . . . Retrieved Matter . | . . . . . Retrieved Components . | . . . . . Parts Scanalyzed . | . . . . . Part Schematics Acquired . | . . . . . Parts Damaged . | . . . . . Bothacking | -11 -10 -10 -9 -9 ------------ Run | Yrd Mat Min Mat Sto Used RIF Installer . | . . . . . Robots Hacked . | . . . . . Non-combat . | . . . . . Combat . | . . . . . Robot Hacks Applied . | . . . . . Relay Couplers Released . | . . . . . Fabnet Peak Effective % . | . . . . . Robots Rewired . | . . . . . Allies Hacked . | . . . . . Hacks Repelled . | . . . . . Allies | -11 -10 -10 -9 -9 -------- Run | Yrd Mat Min Mat Sto Total Allies . | . . . . . Largest Group . | . . . . . Highest-Rated Group . | . . . . . Highest-Rated Ally . | . . . . . Total Orders . | . . . . . Ally Attacks . | . . . . . Total Damage . | . . . . . Kills . | . . . . . Allies Corrupted . | . . . . . Allies Melted . | . . . . . Intel | -11 -10 -10 -9 -9 ------- Run | Yrd Mat Min Mat Sto Active Infowar (turns) 62 | . . . 19 43 Sensors 43 | . . . . 43 ECM 19 | . . . 19 . Robot Analysis Total . | . . . . . Derelict Logs Recovered . | . . . . . Drone Launches 13 | . . . . 13 Drone Recoveries 8 | . . . . 8 Exploration | -11 -10 -10 -9 -9 ------------- Run | Yrd Mat Min Mat Sto Turns Passed 769 | 94 196 142 138 199 Spaces Moved 686 | 59 106 75 158 288 Core 192 | 11 . . . 181 Treads 229 | 48 106 75 . . Legs . | . . . . . Wheels . | . . . . . Hover . | . . . . . Flight 265 | . . . 158 107 Fastest Speed 31 | 50 160 160 31 40 Average Speed 86 | 142 160 160 34 57 Slowest Speed 200 | 160 160 160 40 200 Overloaded Moves . | . . . . . Propulsion Burnouts . | . . . . . Robots Hopped 7 | . . . 3 4 Potential Cave-ins . | . . . . . Cave-ins Triggered . | . . . . . Exploration Rate (%) 23 | 4 24 24 23 40 Regions Visited 4 Branch Regions 2 Pre-discovered Areas . | . . . . . Known Exits Taken 2 | . . 1 1 . Unknown Exits Taken 2 | 1 1 . . . Scrap Searched . | . . . . . Spaces Dug . | . . . . . Terrain Destroyed 53 | . . 34 19 . Melee . | . . . . . Projectile . | . . . . . AOE 53 | . . 34 19 . Terrain Rammed . | . . . . . Walls Destroyed . | . . . . . Machines Disabled . | . . . . . Actions | -11 -10 -10 -9 -9 --------- Run | Yrd Mat Min Mat Sto Total 825 | 66 123 97 222 317 Wait 61 | . 6 . 34 21 Move 668 | 58 105 74 151 280 Hop 7 | . . . 3 4 Pick Up 14 | 2 3 7 1 1 Fast Attach 14 | 6 2 2 1 3 Attach 9 | . . 1 8 . Detach 7 | . 1 1 3 2 Swap 2 | . 1 . . 1 Drop 14 | . . 8 5 1 Fire 24 | . 4 4 16 . Melee . | . . . . . Ram 4 | . . . . 4 Kick . | . . . . . Crush 1 | . 1 . . . Escape Stasis . | . . . . . Rewire . | . . . . . Trap . | . . . . . Miscellaneous . | . . . . . Route ------- -11/Scrapyard -10/Materials -10/Mines -9/Materials -9/Storage History --------- Turn | Location | Event 33 | -11/Scrapyard | Discovered new exit (range 16) 95 | -11/Scrapyard | Entered Materials 267 | -10/Materials | Discovered new exit (range 15) 291 | -10/Materials | Entered Mines 326 | -10/Mines | Build established: Mutant 399 | -10/Mines | Discovered new exit (range 6) 430 | -10/Mines | Identified exit to Materials 433 | -10/Mines | Entered Materials 433 | -9/Materials | Evolved 2 slots: Propulsion x2 563 | -9/Materials | Discovered new exit (range 14) 571 | -9/Materials | Identified exit to Storage 571 | -9/Materials | Entered Storage 594 | -9/Storage | Lost 4 parts (3n1w) 605 | -9/Storage | Repaired Lgt. Ion Engine? 666 | -9/Storage | Core integrity fell below 50% 702 | -9/Storage | Core integrity fell below 20% 739 | -9/Storage | Lost 5 allies 770 | -9/Storage | Destroyed by Y-45 Defender with Heavy Assault Rifle Last Messages --------------- 00699_ Destabilizing: System corrupted (+2). 00700_ Slammed into Y-45 Defender. 00700_ R-06 Scavenger collects Drone Bay. 00701_ Drone Bay destroyed. 00701_ Slammed into Y-45 Defender. 00701_ >> Lost connection to Drone. 00702_ Acquired 14 matter. 00709_ System corrupted: Matter fused (-7). 00715_ K-01 Serf collects debris. 00717_ Acquired 96 matter. 00718_ K-01 Serf collects debris. 00721_ Acquired Sensor Array. 00724_ K-01 Serf collects debris. 00726_ U95YYDLAZ6VVY,FACGEPO& 00727_ Connecting with Door Terminal... 00736_ W-16 Scout sends out distress signal. 00741_ K-01 Serf cleans the Terminal. 00764_ Sensor Array destroyed. 00765_ RZ:JRSZSKOKSM:%E,ZM